bitfinex-derivatives/quotes_ETHF0:USTF0_20251012
["timestamp","ask_amount","ask_price","bid_price","bid_amount"]
[1760265904860,49.67560031,3823.3,3823.2,3.20912304]
[1760265906364,49.20504031,3823.3,3823.2,3.67969304]
[1760265908572,50.14514031,3823.3,3823.2,3.67969304]
[1760265909679,46.51444982,3823.3,3823.2,4.84849304]
[1760265909975,47.11344982,3823.3,3823.2,4.84849304]
[1760265910372,47.11344982,3823.3,3823.2,4.26909304]
[1760265910572,47.58400982,3823.3,3823.2,3.20912304]
[1760265910775,50.49118806,3823.3,3823.2,3.20912304]
[1760265911378,50.49118806,3823.3,3823.2,0.00132304]
[1760265913682,50.49118806,3823.3,3823.2,0.47189304]
[1760265916276,50.02062806,3823.3,3823.2,1.07619304]
[1760265916484,6.31344982,3823.3,3823.2,1.65179304]
[1760265917279,6.31344982,3823.3,3823.2,4.85959304]
[1760265917881,6.31344982,3823.3,3823.2,3.67969304]
[1760265918179,9.61323768,3823.3,3823.2,0.00132304]
[1760265919375,50.41323768,3823.3,3823.2,0.00132304]
[1760265921082,50.41323768,3823.3,3823.2,0.47189304]
[1760265922190,49.94267768,3823.3,3823.2,0.47189304]
[1760265923579,50.41323768,3823.3,3823.2,0.47189304]
[1760265924186,49.94267768,3823.3,3823.2,0.47189304]
[1760265924886,50.41323768,3823.3,3823.2,0.47189304]
[1760265925489,49.94267768,3823.3,3823.2,0.47189304]
[1760265925689,50.41323768,3823.3,3823.2,0.47189304]
[1760265926191,55.67923768,3823.3,3823.2,0.47189304]
[1760265926586,55.67923768,3823.3,3823.2,0.00132304]
[1760265927191,55.67923768,3823.3,3823.2,0.47189304]
[1760265932289,55.20867768,3823.3,3823.2,1.07619304]
[1760265932791,55.20867768,3823.3,3823.2,0.47189304]
[1760265932990,55.67923768,3823.3,3823.2,0.47189304]
[1760265935690,49.94267768,3823.3,3823.2,1.65179304]
[1760265935888,4.26644982,3823.3,3823.2,5.30339304]
[1760265936595,5.13324982,3823.3,3823.2,5.30339304]
[1760265936892,4.26644982,3823.3,3823.2,5.30339304]
[1760265937085,3.7782925,3823.3,3823.2,10.30339304]
[1760265937287,1.16844062,3823.9,3823.8,2.0942]
[1760265937591,3.19314062,3823.9,3823.8,4.8582]
[1760265938296,2.03524062,3823.9,3823.8,5.302]
[1760265941597,1.16844062,3823.9,3823.8,5.302]
[1760265941795,1.16844062,3823.9,3823.8,10.302]
[1760265941992,1.2255,3824.5,3824.4,1.58942]
[1760265942300,0.8606,3824.5,3824.4,5.22252]
[1760265943094,42.2196,3824.9,3824.8,1.58937]
[1760265943400,45.62918703,3824.9,3824.8,1.58937]
[1760265944794,45.62918703,3824.9,3824.8,1.02007]
[1760265945595,45.62918703,3824.9,3824.8,0.47037]
[1760265948999,45.62918703,3824.9,3824.8,1.03067]
[1760265949800,46.09954703,3824.9,3824.8,0.47037]
[1760265950305,45.62918703,3824.9,3824.8,0.47037]
[1760265950504,46.09954703,3824.9,3824.8,0.47037]
[1760265950804,45.62918703,3824.9,3824.8,0.47037]
[1760265956007,45.62918703,3824.9,3824.8,1.03067]
[1760265956203,45.62918703,3824.9,3824.8,1.60117]
[1760265956409,44.47788703,3824.9,3824.8,2.03017]
[1760265956707,45.66448703,3824.9,3824.8,1.60117]
[1760265957212,45.66448703,3824.9,3824.8,0.47037]
[1760265957512,45.66448703,3824.9,3824.8,1.03067]
[1760265957913,45.66448703,3824.9,3824.8,0.47037]
[1760265958910,45.66448703,3824.9,3824.8,1.03067]
[1760265960211,45.66448703,3824.9,3824.8,0.47037]
[1760265961214,45.66448703,3824.9,3824.8,1.03067]
[1760265962016,45.66448703,3824.9,3824.8,0.47037]
[1760265962207,45.07258703,3824.9,3824.8,1.60117]
[1760265962410,44.47788703,3824.9,3824.8,1.60117]
[1760265962812,45.07258703,3824.9,3824.8,1.60117]
[1760265963211,45.66448703,3824.9,3824.8,1.60117]
[1760265965418,44.47788703,3824.9,3824.8,2.03017]
[1760265965610,45.07258703,3824.9,3824.8,2.03017]
[1760265966010,45.66448703,3824.9,3824.8,1.60117]
[1760265968519,45.66448703,3824.9,3824.8,1.03067]
[1760265969117,45.66448703,3824.9,3824.8,4.23847]
[1760265969722,45.66448703,3824.9,3824.8,3.67817]
[1760265970519,45.66448703,3824.9,3824.8,0.47037]
[1760265970720,45.66448703,3824.9,3824.8,3.67817]
[1760265970921,45.66448703,3824.9,3824.8,4.23387]
[1760265972627,49.10801556,3824.9,3824.8,4.23387]
[1760265972932,49.10801556,3824.9,3824.8,3.67817]
[1760265976823,49.10801556,3824.9,3824.1,3.27494381]
[1760265976824,0.47049,3823.9,3823.7,0.4705]
[1760265977033,1.9224,3823.8,3823.7,0.47051]
[1760265977321,8.07860145,3823.8,3823.7,0.47051]
[1760265977514,42.7224,3823.8,3823.7,0.47051]
[1760265977718,5.35369819,3823.8,3823.7,1.30141]
[1760265977916,8.10678098,3823.8,3823.7,1.30141]
[1760265978319,48.90678098,3823.8,3823.7,1.30141]
[1760265978521,48.90678098,3823.8,3823.7,0.47051]
[1760265979630,1.38,3823.4,3823.3,0.47055]
[1760265979830,0.47056,3823.3,3823.2,3.20912304]
[1760265980126,5.60076,3823.3,3823.2,0.00132304]
[1760265980327,11.99453302,3823.3,3823.2,0.00132304]
[1760265980522,1.9224,3822.6,3822.4,3.67846]
[1760265980730,1.38,3822.4,3822.3,1.02638]
[1760265980924,4.3072,3823.3,3823.2,2.45357]
[1760265981123,1.9224,3823.3,3823.2,2.45357]
[1760265981321,8.25031833,3823.3,3823.2,2.45357]
[1760265981525,8.25031833,3823.3,3823.2,2.45623162]
[1760265983734,8.25031833,3823.3,3823.2,0.47323162]
[1760265984620,8.25031833,3823.3,3823.2,0.00266162]
[1760265986427,11.45811833,3823.3,3823.2,0.00266162]
[1760265987133,11.92867833,3823.3,3823.2,0.00266162]
[1760265987833,16.92867833,3823.3,3823.2,0.00266162]
[1760265988033,0.5424,3822.7,3822.6,0.47064]
[1760265988238,2.39303,3822.7,3822.6,0.47064]
[1760265988733,2.39303,3822.7,3821.8,3.2078]
[1760265988734,1.0994,3821.9,3821.8,0.47074]
[1760265988927,1.9224,3821.9,3821.8,0.47074]
[1760265989129,1.92481025,3821.9,3821.8,0.47074]
[1760265989333,42.72481025,3821.9,3821.8,0.47074]
[1760265989832,1.0994,3821.7,3821.6,1.85736]
[1760265990028,1.9224,3821.7,3821.6,1.85736]
[1760265992327,2.39315,3821.7,3821.6,0.5557]
[1760265993035,1.9224,3821.7,3821.6,1.02647]
[1760265993337,1.9224,3821.7,3821.6,1.85737]
[1760265995036,1.9224,3821.7,3821.6,2.45377]
[1760265995537,42.72481025,3821.9,3821.8,2.45374]
[1760265995835,43.19554025,3821.9,3821.8,2.45374]
[1760265998037,40.80241025,3821.9,3821.8,2.45374]
[1760265998234,0.5424,3822.7,3822.6,2.45364]
[1760265998537,0.5424,3823.0,3822.9,2.45361]
[1760265998734,41.8994,3823.0,3822.9,2.45361]
[1760265998926,42.7224,3823.0,3822.9,2.45361]
[1760265999329,42.72458236,3823.0,3822.9,2.45361]
[1760265999736,43.19517236,3823.0,3822.9,2.45361]
[1760266000031,42.72458236,3823.0,3822.9,2.45361]
[1760266000235,43.19517236,3823.0,3822.9,2.45361]
[1760266002636,42.72458236,3823.0,3822.9,2.45361]
[1760266003537,2.39517236,3823.0,3822.9,2.45361]
[1760266006641,0.00218236,3823.0,3822.9,7.45361]
[1760266006842,0.00218236,3823.0,3822.9,10.66141]
[1760266018644,0.00218236,3823.0,3822.9,7.45361]
[1760266018947,0.00218236,3823.0,3822.9,10.66141]
[1760266020143,6.32791833,3823.3,3822.9,10.66141]
[1760266020144,5.7038519,3823.3,3823.2,2.43867]
[1760266021042,5.70679932,3823.3,3823.2,2.43867]
[1760266026561,4.40009489,3823.3,3823.2,2.43867]
[1760266026748,3.67599489,3823.3,3823.2,2.43867]
[1760266027252,2.36929046,3823.3,3823.2,2.43867]
[1760266027454,1.52669046,3823.3,3823.2,2.43867]
[1760266027750,0.00294742,3823.3,3823.2,2.43867]
[1760266027950,1.3642,3824.8,3824.7,1.1466]
[1760266028251,3.7574,3825.0,3824.9,1.02466]
[1760266028448,4.572,3825.0,3824.9,2.43846]
[1760266028748,11.46735467,3825.0,3824.9,2.43846]
[1760266029055,52.74063851,3825.0,3824.9,2.44046964]
[1760266029253,1.02002,3824.4,3824.3,0.8215]
[1760266029455,4.80492,3824.4,3823.7,3.2078]
[1760266029750,0.5496,3823.9,3823.8,1.9681]
[1760266029951,2.0139,3823.9,3823.8,1.9681]
[1760266030256,5.39468347,3823.9,3823.8,1.9714586]
[1760266031058,5.39468347,3823.9,3823.8,2.4419586]
[1760266031554,5.39468347,3823.9,3823.8,1.8496586]
[1760266032759,5.86516347,3823.9,3823.8,1.3791586]
[1760266032958,5.86516347,3823.9,3823.8,0.0033586]
[1760266033458,13.6576024,3823.9,3823.8,0.0033586]
[1760266036058,13.1871224,3823.9,3823.8,1.9472586]
[1760266037160,8.6576024,3823.9,3823.8,1.9472586]
[1760266037662,8.6576024,3823.9,3823.8,0.0033586]
[1760266038051,8.6576024,3823.9,3823.8,0.5927586]
[1760266038262,6.6437024,3823.9,3823.8,2.0660586]
[1760266038455,7.2371024,3823.9,3823.8,2.0660586]
[1760266038651,8.7047024,3823.9,3823.8,2.0660586]
[1760266038851,13.7047024,3823.9,3823.8,0.0033586]
[1760266039053,2.53156,3823.3,3823.2,3.2078]
[1760266039357,2.061,3823.0,3822.9,2.53331]
[1760266039758,5.47633281,3823.0,3822.9,2.53331]
[1760266040061,5.47633281,3823.0,3822.9,2.53555143]
[1760266040261,5.47633281,3823.0,3822.9,2.06494143]
[1760266040467,8.49699211,3823.0,3822.9,2.06494143]
[1760266041062,9.29238211,3823.0,3822.9,0.00224143]
[1760266042253,9.29238211,3823.0,3822.3,3.2078]
[1760266042254,0.47067,3822.4,3822.3,3.2078]
[1760266042461,2.53167,3822.4,3822.1,0.4707]
[1760266042658,0.8872,3822.0,3821.9,3.2078]
[1760266042959,2.061,3821.9,3821.8,1.35474]
[1760266043165,2.061,3821.9,3821.8,1.94414]
[1760266043363,8.39398135,3821.9,3821.8,1.94414]
[1760266043756,8.39398135,3821.9,3821.7,0.47075]
[1760266043957,2.061,3821.8,3821.7,2.53345]
[1760266044359,5.4138323,3821.8,3821.7,2.53345]
[1760266044962,0.00337527,3821.9,3821.8,2.0627]
[1760266046065,0.00337527,3821.9,3821.8,2.53344]
[1760266049169,2.061,3822.8,3822.7,2.53333]
[1760266049665,0.8872,3823.4,3823.3,0.47055]
[1760266049867,0.8872,3824.2,3823.7,0.884]
[1760266050073,3.2078,3824.3,3824.2,2.53315]
[1760266050271,3.21029882,3824.3,3824.2,2.53315]
[1760266050463,5.27129882,3824.3,3824.2,0.5894]
[1760266050664,1.1738,3823.9,3823.8,0.47049]
[1760266050862,1.1738,3823.9,3823.8,2.53319]
[1760266051263,2.061,3823.9,3823.8,2.53319]
[1760266051961,1.1738,3823.9,3823.8,2.53319]
[1760266052369,0.5934,3823.9,3823.8,2.53319]
[1760266053668,40.8,3824.1,3824.0,0.47047]
[1760266053862,4.38409882,3824.3,3824.2,2.53315]
[1760266054164,5.27129882,3824.3,3824.2,2.53315]
[1760266054370,46.07129882,3824.3,3824.2,2.53315]
[1760266054568,42.86349882,3824.3,3824.2,2.53315]
[1760266054766,0.00249882,3824.3,3824.2,2.53315]
[1760266057169,0.00249882,3824.3,3824.2,5.74095]
[1760266058672,2.06349882,3824.3,3824.2,5.74095]
[1760266059066,0.00249882,3824.3,3824.2,5.74095]
[1760266061471,0.7088311,3824.3,3824.2,5.74095]
[1760266061669,0.38506185,3824.3,3824.2,10.74095]
[1760266061873,0.92338686,3825.0,3824.8,1.63807]
[1760266062072,0.92338686,3825.0,3824.9,5.2608]
[1760266062777,0.92550744,3825.0,3824.9,5.2608]
[1760266064274,1.84677372,3825.6,3825.5,2.69099]
[1760266064575,1.84677372,3825.6,3825.5,5.89879]
[1760266065077,1.84871268,3825.6,3825.5,5.89879]
[1760266065979,3.73741268,3825.6,3825.5,3.7901]
[1760266066180,0.8973,3825.5,3825.4,0.47029]
[1760266066376,4.09550691,3825.5,3825.4,1.05259]
[1760266067473,2.2436,3825.5,3825.4,1.63799]
[1760266068281,2.2436,3825.5,3825.4,1.05905582]
[1760266068481,2.2436,3825.5,3825.4,0.60165582]
[1760266069681,2.2436,3825.5,3825.4,1.07194582]
[1760266072176,1.7022,3825.5,3825.4,1.07194582]
[1760266072785,2.2941,3825.5,3825.4,1.07194582]
[1760266073385,2.2941,3825.5,3825.0,4.42775]
[1760266073386,2.0219,3825.1,3825.0,4.42775]
[1760266073783,2.0219,3825.1,3825.0,4.05295]
[1760266074386,2.0219,3825.1,3825.0,3.67815]
[1760266075485,2.0219,3825.1,3825.0,4.05295]
[1760266076086,0.8924,3825.1,3825.0,4.42775]
[1760266076279,0.8924,3825.1,3825.0,4.66195]
[1760266076882,4.32140346,3825.1,3825.0,4.66195]
[1760266077081,6.65679913,3825.5,3825.4,1.2199]
[1760266077276,6.65679913,3825.5,3825.4,4.6619]
[1760266077277,2.87289567,3825.5,3825.4,4.6619]
[1760266077477,0.89433896,3825.6,3825.5,1.21989]
[1760266078288,1.43193896,3825.6,3825.5,1.21989]
[1760266078786,8.26719666,3825.6,3825.5,0.47029]
[1760266078982,0.3259,3825.0,3824.9,3.2078]
[1760266079185,2.3478,3825.0,3824.9,3.5826]
[1760266079584,1.2183,3825.0,3824.9,4.42776]
[1760266079785,0.8635,3825.5,3825.4,1.2199]
[1760266080083,4.21283194,3825.5,3825.4,1.2199]
[1760266080284,8.60898572,3825.5,3825.4,1.2199]
[1760266080891,8.60898572,3825.5,3825.4,0.4703]
[1760266081494,2.3478,3825.0,3824.9,3.2078]
[1760266081693,2.3478,3825.0,3824.9,3.67816]
[1760266081890,8.76610479,3825.0,3824.9,0.47036]
[1760266082590,13.76610479,3825.0,3824.9,0.47036]
[1760266082990,54.56610479,3825.0,3824.9,0.47036]
[1760266084900,2.49227,3824.9,3824.8,0.47037]
[1760266085294,8.2814371,3824.9,3824.8,0.47037]
[1760266085899,8.7517971,3824.9,3824.8,0.47037]
[1760266086100,2.0219,3824.7,3824.6,0.47039]
[1760266086494,2.0219,3824.7,3824.1,3.67826]
[1760266086495,2.0219,3824.2,3824.1,3.67826]
[1760266086795,8.20801869,3824.2,3824.1,3.67826]
[1760266088301,8.67846869,3824.2,3824.1,3.67826]
[1760266088599,8.67846869,3824.2,3824.1,0.47046]
[1760266089102,8.20801869,3824.2,3824.1,0.47046]
[1760266089500,8.67846869,3824.2,3824.1,0.47046]
[1760266089695,7.07851869,3824.2,3823.7,3.68046648]
[1760266089902,1.9571,3823.8,3823.7,0.47266648]
[1760266090198,8.1301332,3823.8,3823.7,0.47266648]
[1760266090398,49.4006332,3823.8,3823.7,0.00216648]
[1760266090802,49.4006332,3823.8,3823.7,0.47267648]
[1760266091604,48.9301332,3823.8,3823.7,0.47267648]
[1760266091904,49.4006332,3823.8,3823.7,0.00216648]
[1760266092505,2.42764,3823.4,3823.3,0.47056]
[1760266092906,8.60367712,3823.4,3823.3,0.47056]
[1760266093513,8.60367712,3823.4,3823.3,0.47250531]
[1760266093717,8.13313712,3823.4,3823.3,0.47250531]
[1760266094310,8.60367712,3823.4,3823.3,0.47250531]
[1760266095111,8.60367712,3823.4,3823.3,1.18970531]
[1760266095112,7.56313712,3823.4,3823.3,1.18970531]
[1760266095708,8.13313712,3823.4,3823.3,1.18970531]
[1760266095913,8.13313712,3823.4,3823.3,0.83110531]
[1760266096214,8.13313712,3823.4,3823.3,4.39750531]
[1760266096215,4.74515128,3823.4,3823.3,4.39750531]
[1760266097015,4.17905128,3823.4,3823.3,4.39750531]
[1760266097310,0.3221,3823.5,3823.3,4.39750531]
[1760266097311,0.821,3823.8,3823.7,1.41181]
[1760266097511,1.3871,3823.8,3823.7,1.18771]
[1760266097815,5.39238829,3823.8,3823.7,1.18771]
[1760266098014,4.82238829,3823.8,3823.7,1.18771]
[1760266099114,3.43528829,3823.8,3823.7,4.61961]
[1760266099310,0.821,3824.3,3824.2,0.47045]
[1760266099512,0.821,3824.3,3824.2,1.18765]
[1760266099714,5.36980429,3824.3,3824.2,1.18765]
[1760266100021,5.36980429,3824.3,3824.2,0.82905]
[1760266100817,4.23370429,3824.3,3824.2,1.18765]
[1760266101018,5.36980429,3824.3,3824.2,1.18765]
[1760266101410,4.23370429,3824.3,3824.2,1.18765]
[1760266101610,4.79980429,3824.3,3824.2,1.18765]
[1760266101811,8.3437135,3824.3,3824.2,0.47045]
[1760266102714,7.7737135,3824.3,3824.2,0.82905]
[1760266102918,4.23370429,3824.3,3824.2,1.18765]
[1760266103719,4.79980429,3824.3,3824.2,1.18765]
[1760266104020,5.36980429,3824.3,3824.2,1.18765]
[1760266104917,4.23370429,3824.3,3824.2,1.18765]
[1760266105219,3.41270429,3824.3,3824.2,1.41175]
[1760266105421,4.23370429,3824.3,3824.2,1.18765]
[1760266105609,1.3871,3824.3,3824.2,1.18765]
[1760266105810,4.77379726,3824.3,3824.2,1.18765]
[1760266107621,4.77379726,3824.3,3824.2,1.41175]
[1760266107622,3.38669726,3824.3,3824.2,1.41175]
[1760266107823,0.3259,3825.0,3824.9,1.41166]
[1760266108017,1.1469,3825.0,3824.9,1.41166]
[1760266108219,5.61407188,3825.0,3824.9,1.18756]
[1760266108519,5.61407188,3825.0,3824.9,0.47036]
[1760266109220,1.9571,3824.8,3824.7,0.47038]
[1760266109620,8.41623029,3824.8,3824.7,0.47038]
[1760266111927,8.41623029,3824.8,3824.7,0.82898]
[1760266113626,8.41623029,3824.8,3824.7,1.18758]
[1760266113829,8.41623029,3824.8,3824.7,0.47038]
[1760266114226,8.41623029,3824.8,3824.7,1.18758]
[1760266118031,8.41623029,3824.8,3824.1,1.17613]
[1760266118032,1.85755,3824.2,3824.1,3.2078]
[1760266118337,1.85755,3824.2,3823.7,2.32898873]
[1760266118338,1.9571,3823.8,3823.7,0.47051]
[1760266118537,42.7571,3823.8,3823.7,0.47051]
[1760266118736,42.7571,3823.8,3823.7,0.82911]
[1760266118737,49.11574137,3823.8,3823.7,0.82911]
[1760266119136,49.11574137,3823.8,3823.7,0.47051]
[1760266119634,6.35864137,3823.8,3823.7,3.74079873]
[1760266119833,3.5299,3824.5,3823.7,3.74079873]
[1760266119834,0.3221,3824.5,3824.4,1.28832]
[1760266120029,4.3209,3825.4,3825.3,0.47031]
[1760266120237,45.1209,3825.4,3825.3,0.47031]
[1760266120431,1.1131,3825.2,3825.1,0.47032]
[1760266120835,7.4186408,3825.2,3825.1,0.47032]
[1760266121233,7.4186408,3825.2,3825.1,1.85462]
[1760266121437,7.4186408,3825.2,3825.1,1.04762]
[1760266121639,7.4186408,3825.2,3825.1,0.47032]
[1760266122144,8.2905408,3825.2,3825.1,0.47032]
[1760266123241,8.2905408,3825.2,3825.1,1.85462]
[1760266123445,8.2905408,3825.2,3825.1,1.04762]
[1760266123740,8.2905408,3825.2,3825.1,0.47032]
[1760266123945,13.2905408,3825.2,3825.1,0.47032]
[1760266124146,8.2905408,3825.2,3825.1,1.04762]
[1760266124845,49.0905408,3825.2,3825.1,1.04762]
[1760266125040,49.0905408,3825.2,3825.1,0.47032]
[1760266125347,49.0905408,3825.2,3825.1,1.04762]
[1760266125852,47.1055408,3825.2,3825.1,2.40252]
[1760266126447,49.0608408,3825.2,3825.1,2.40252]
[1760266129052,47.1055408,3825.2,3825.1,2.40252]
[1760266129655,48.4912408,3825.2,3825.1,2.40252]
[1760266130554,49.0608408,3825.2,3825.1,2.40252]
[1760266132457,48.4912408,3825.2,3825.1,2.40252]
[1760266132754,47.6336408,3825.2,3825.1,2.40252]
[1760266133056,3.40723069,3825.2,3825.1,2.40252]
[1760266133566,1.95723896,3825.6,3825.5,1.00089]
[1760266133852,46.10271678,3825.6,3825.5,0.47029]
[1760266134065,48.97296161,3825.6,3825.5,0.47029]
[1760266134662,48.97296161,3825.6,3825.5,2.35769]
[1760266134857,48.11536161,3825.6,3825.5,2.67839]
[1760266135259,47.01766161,3825.6,3825.5,2.67839]
[1760266135572,3.34741678,3825.6,3825.5,5.0235023]
[1760266136451,0.00193896,3825.6,3825.5,7.67839]
[1760266137164,4.5935,3826.5,3826.4,2.35758]
[1760266137359,1.9553,3826.5,3826.4,2.35758]
[1760266137565,5.35987846,3826.5,3826.4,2.35758]
[1760266137766,4.50227846,3826.5,3826.4,2.35758]
[1760266138066,4.50487063,3826.5,3826.4,2.35944936]
[1760266139168,3.40717063,3826.5,3826.4,2.35944936]
[1760266139768,3.93527063,3826.5,3826.4,2.35944936]
[1760266139967,0.00259217,3826.5,3826.4,2.35944936]
[1760266141264,1.38829217,3826.5,3826.4,2.35944936]
[1760266141458,5.68276697,3826.5,3826.4,0.47204936]
[1760266141664,8.42100459,3826.5,3826.4,0.47204936]
[1760266141963,8.42100459,3826.5,3826.4,1.00264936]
[1760266142361,8.42100459,3826.5,3826.4,0.47204936]
[1760266142561,49.22100459,3826.5,3826.4,0.47204936]
[1760266142762,49.22100459,3826.5,3826.4,1.00264936]
[1760266142969,46.15676697,3826.5,3826.4,2.35944936]
[1760266143671,5.35676697,3826.5,3826.4,2.35944936]
[1760266143872,5.35676697,3826.5,3826.4,1.55754936]
[1760266144172,5.35676697,3826.5,3826.4,2.35944936]
[1760266144673,8.41977764,3826.5,3826.4,0.47204936]
[1760266144872,8.41977764,3826.5,3826.4,1.00264936]
[1760266145066,8.41977764,3826.5,3826.4,2.35944936]
[1760266146061,8.09377764,3826.5,3826.4,2.35944936]
[1760266146268,3.40146697,3826.5,3826.4,2.35944936]
[1760266146467,3.92956697,3826.5,3826.4,2.35944936]
[1760266146677,5.35676697,3826.5,3826.4,2.35944936]
[1760266147575,3.92956697,3826.5,3826.4,2.35944936]
[1760266147972,3.40146697,3826.5,3826.4,2.35944936]
[1760266148178,0.00259217,3826.5,3826.4,2.35944936]
[1760266148373,0.00259217,3826.5,3826.4,4.70221343]
[1760266148575,0.00259217,3826.5,3826.4,2.35944936]
[1760266149277,0.8796,3827.8,3826.4,7.35944936]
[1760266149475,0.8796,3827.8,3827.7,2.35742]
[1760266149476,1.9773,3827.8,3827.7,2.35742]
[1760266149882,49.00265227,3827.8,3827.7,2.35742]
[1760266150378,49.00602576,3827.8,3827.7,2.35742]
[1760266150875,0.8239,3827.7,3827.2,3.2078]
[1760266151177,1.115,3827.3,3827.2,1.85028]
[1760266151377,1.115,3827.3,3827.2,2.42528]
[1760266151677,0.5388,3827.6,3827.5,2.75354]
[1760266151981,1.3627,3827.7,3827.6,2.42523]
[1760266152175,1.9389,3827.7,3827.6,2.42523]
[1760266152480,8.11971126,3827.7,3827.6,2.42523]
[1760266153080,8.11971126,3827.7,3827.6,1.00623]
[1760266154277,1.115,3827.3,3827.2,3.744]
[1760266154481,1.9389,3827.3,3827.2,1.85028]
[1760266154774,1.9389,3827.3,3826.7,4.38315]
[1760266154775,1.9389,3826.8,3826.7,3.2078]
[1760266154967,1.9389,3826.8,3826.7,5.63314]
[1760266155172,5.32571764,3826.8,3826.7,5.63314]
[1760266155372,8.34672847,3826.8,3826.7,3.67794]
[1760266157579,7.52282847,3826.8,3826.7,5.63314]
[1760266158280,8.34672847,3826.8,3826.7,5.63314]
[1760266158481,7.52282847,3826.8,3826.7,5.63314]
[1760266159081,8.34672847,3826.8,3826.7,5.63314]
[1760266159685,8.34672847,3826.8,3826.7,4.78914]
[1760266159885,8.34672847,3826.8,3826.7,5.63314]
[1760266160084,8.34672847,3826.8,3826.7,2.42534]
[1760266160485,8.34672847,3826.8,3826.4,0.00186936]
[1760266160486,8.34672847,3826.8,3826.6,0.47014]
[1760266160781,8.34672847,3826.8,3826.4,0.00186936]
[1760266160782,8.34672847,3826.8,3826.7,0.47014]
[1760266161183,2.2566,3826.5,3826.4,0.00186936]
[1760266161384,2.72676,3826.5,3826.4,0.00186936]
[1760266161577,14.03666207,3826.5,3826.4,0.00186936]
[1760266162384,14.03666207,3826.5,3825.4,3.2078]
[1760266162385,2.2566,3825.5,3825.4,3.6781]
[1760266162588,0.8239,3825.5,3825.4,5.6333]
[1760266162781,3.33023132,3825.5,3825.4,5.6333]
[1760266162982,42.1627,3826.8,3826.7,0.47014]
[1760266163182,0.3177,3827.0,3826.9,0.47011]
[1760266163385,1.1416,3827.0,3826.9,0.47218565]
[1760266163594,1.6804,3827.0,3826.9,0.47218565]
[1760266164080,1.6804,3827.5,3827.4,0.47005]
[1760266164482,43.0566,3827.5,3827.4,0.47005]
[1760266164886,46.05540326,3827.5,3827.4,0.47005]
[1760266165590,1.4327,3827.0,3826.9,0.47218565]
[1760266165795,2.2566,3827.0,3826.9,0.47218565]
[1760266165994,5.67304187,3827.0,3826.9,0.47218565]
[1760266166691,8.49409509,3827.0,3826.9,0.00207565]
[1760266167590,4.55804187,3827.0,3826.9,0.00207565]
[1760266167797,5.67304187,3827.0,3826.9,0.00207565]
[1760266168788,8.5899052,3827.0,3826.9,0.00207565]
[1760266169190,8.5899052,3827.0,3826.9,0.47218565]
[1760266169896,5.67304187,3827.0,3826.9,0.47218565]
[1760266171392,3.41644187,3827.0,3826.9,3.67998565]
[1760266171694,0.8239,3827.3,3827.2,0.47008]
[1760266171895,0.8239,3827.3,3827.2,2.81300113]
[1760266172092,4.76459857,3827.3,3827.2,2.81300113]
[1760266174799,5.34079857,3827.3,3827.2,2.81300113]
[1760266175199,5.34079857,3827.3,3827.2,0.47008]
[1760266175897,1.9389,3827.2,3827.1,2.34292113]
[1760266176102,1.9389,3827.2,3827.1,0.47009]
[1760266176306,5.36282898,3827.2,3827.1,0.47009]
[1760266178302,5.36282898,3827.2,3827.1,2.81301113]
[1760266178690,4.24782898,3827.2,3827.1,2.81301113]
[1760266178900,4.78662898,3827.2,3827.1,2.81301113]
[1760266181699,0.8239,3827.2,3827.1,2.81301113]
[1760266182506,0.8239,3827.2,3827.1,0.47009]
[1760266182806,1.3671,3827.2,3827.1,0.47009]
[1760266183001,5.38472793,3827.2,3827.1,2.81342856]
[1760266183199,5.38472793,3827.2,3827.1,0.47009]
[1760266183903,8.41683867,3827.2,3826.9,6.02331421]
[1760266184104,2.251,3827.0,3826.9,3.67997565]
[1760266184505,8.29738916,3827.0,3826.9,3.67997565]
[1760266185802,8.29738916,3827.0,3826.9,0.47217565]
[1760266186310,8.29738916,3827.0,3826.9,2.81551421]
[1760266187200,8.29738916,3827.0,3826.9,0.47217565]
[1760266187401,8.29738916,3827.0,3826.9,2.81551421]
[1760266188310,8.29738916,3827.0,3826.9,0.47217565]
[1760266189314,8.29738916,3827.0,3826.9,2.81551421]
[1760266189702,8.76748916,3827.0,3826.9,2.34541421]
[1760266189907,8.76748916,3827.0,3826.9,0.00207565]
[1760266190312,8.76748916,3827.0,3826.9,0.47218565]
[1760266190514,49.56748916,3827.0,3826.9,0.47218565]
[1760266191518,49.09738916,3827.0,3826.9,0.47218565]
[1760266192007,49.56748916,3827.0,3826.9,0.47218565]
[1760266192915,49.09738916,3827.0,3826.9,0.47218565]
[1760266193516,8.29738916,3827.0,3826.9,0.47218565]
[1760266193816,0.8368,3827.5,3827.4,0.47005]
[1760266194014,1.4005,3827.5,3827.4,0.47005]
[1760266194222,4.77630755,3827.5,3827.4,0.47005]
[1760266194520,5.62560755,3827.5,3827.4,0.47005]
[1760266195820,5.62560755,3827.5,3827.4,2.81439729]
[1760266197509,8.5366759,3827.5,3827.4,2.81439729]
[1760266197813,8.5366759,3827.5,3827.4,0.47005]
[1760266200918,1.9321,3827.4,3827.3,0.47006]
[1760266201316,8.35198151,3827.4,3827.3,0.47006]
[1760266201716,0.5191,3827.2,3827.1,2.34434729]
[1760266201915,1.9321,3827.2,3827.1,0.47009]
[1760266202115,8.24609507,3827.2,3827.1,0.47009]
[1760266203424,7.16329507,3827.2,3827.1,0.47009]
[1760266203723,8.24609507,3827.2,3827.1,0.47009]
[1760266205524,0.3177,3827.5,3827.4,0.47005]
[1760266205717,0.8493,3827.5,3827.4,6.02219729]
[1760266205919,0.8493,3827.5,3827.4,3.67785]
[1760266206113,1.6873,3827.5,3827.4,3.67785]
[1760266206322,1.6873,3827.5,3827.4,6.02176201]
[1760266206718,5.66971256,3827.5,3827.4,2.81396201]
[1760266206919,5.66971256,3827.5,3827.4,0.47005]
[1760266208817,5.66971256,3827.5,3827.3,2.34391201]
[1760266208818,1.9321,3827.4,3827.3,0.47006]
[1760266209223,8.27734619,3827.4,3827.3,0.47006]
[1760266210324,8.27734619,3827.4,3827.1,2.34391201]
[1760266210325,0.8005,3827.3,3827.1,2.34391201]
[1760266210621,7.42804619,3827.4,3826.9,0.47218565]
[1760266210622,2.237,3827.0,3826.9,0.47218565]
[1760266211127,8.39489938,3827.0,3826.9,0.47218565]